fUST/lending_fUST_20241205
["ID","MTS","AMOUNT","RATE_DAILY","PERIOD"]
[344376084,1733390558412,-627.30551732,0.00023287,2]
[344376085,1733390558435,-500.0,0.00023287,2]
[344376086,1733390558459,-500.0,0.00023287,2]
[344376087,1733390558483,-500.0,0.00023287,2]
[344376088,1733390558506,-564.78,0.00023287,2]
[344376089,1733390558530,-513.40908181,0.00023287,2]
[344376090,1733390558553,-500.0,0.00023287,2]
[344376091,1733390558576,-500.0,0.00023287,2]
[344376092,1733390558598,-516.85373846,0.00023287,2]
[344376093,1733390558620,-622.6775717,0.00023287,2]
[344376094,1733390558643,-500.0,0.00023287,2]
[344376095,1733390558665,-500.0,0.00023287,2]
[344376096,1733390558687,-500.0,0.00023287,2]
[344376097,1733390558714,-500.0,0.00023287,2]
[344376098,1733390558736,-500.0,0.00023287,2]
[344376099,1733390558758,-500.0,0.00023287,2]
[344376100,1733390558780,-373.50653591,0.00023287,2]
[344376101,1733390558802,-500.0,0.00023287,2]
[344376102,1733390558824,-264.83881708,0.00023287,2]
[344376103,1733390558846,-500.0,0.00023287,2]
[344376104,1733390558868,-500.0,0.00023287,2]
[344376105,1733390558890,-500.0,0.00023287,2]
[344376106,1733390558912,-500.0,0.00023287,2]
[344376107,1733390558936,-500.0,0.00023287,2]
[344376108,1733390558963,-500.0,0.00023287,2]
[344376109,1733390558985,-500.0,0.00023287,2]
[344376110,1733390559007,-500.0,0.00023287,2]
[344376111,1733390559030,-500.0,0.00023287,2]
[344376112,1733390559054,-500.0,0.00023287,2]
[344376113,1733390559077,-676.0,0.00023287,2]
[344376114,1733390559099,-500.0,0.00023287,2]
[344376115,1733390559177,-500.0,0.00023287,2]
[344376116,1733390559201,-754.21,0.00023287,2]
[344376117,1733390559223,-500.0,0.00023287,2]
[344376118,1733390559249,-1001.41,0.00023287,2]
[344376119,1733390559272,-500.0,0.00023287,2]
[344376120,1733390559295,-576.97,0.00023287,2]
[344376121,1733390559318,-649.89,0.00023287,2]
[344376122,1733390559341,-500.0,0.00023287,2]
[344376123,1733390559363,-503.43,0.00023287,2]
[344376124,1733390559386,-8986.01,0.00023287,2]
[344376125,1733390559409,-834.8,0.00023287,2]
[344376126,1733390559432,-500.0,0.00023287,2]
[344376127,1733390559454,-500.0,0.00023287,2]
[344376128,1733390559476,-500.0,0.00023287,2]
[344376129,1733390559498,-500.0,0.00023287,2]
[344376130,1733390559521,-1618.19,0.00023287,2]
[344376131,1733390559543,-500.0,0.00023287,2]
[344376132,1733390559564,-500.0,0.00023287,2]
[344376133,1733390559588,-544.26,0.00023287,2]
[344376134,1733390559612,-692.47,0.00023287,2]
[344376135,1733390559635,-5574.36,0.00023287,2]
[344376136,1733390559659,-500.0,0.00023287,2]
[344376137,1733390559703,-500.0,0.00023287,2]
[344376138,1733390559743,-500.0,0.00023287,2]
[344376139,1733390559786,-500.0,0.00023287,2]
[344376140,1733390559826,-526.51,0.00023287,2]
[344376141,1733390559863,-500.0,0.00023287,2]
[344376142,1733390559907,-1222.44,0.00023287,2]
[344376143,1733390559942,-500.0,0.00023287,2]
[344376144,1733390559979,-535.19,0.00023287,2]
[344376145,1733390560012,-526.75,0.00023287,2]
[344376146,1733390560047,-500.0,0.00023287,2]
[344376147,1733390560083,-500.0,0.00023287,2]
[344376148,1733390560118,-770.38,0.00023287,2]
[344376149,1733390560154,-676.78,0.00023287,2]
[344376150,1733390560190,-516.44519483,0.00023287,2]
[344376151,1733390560227,-500.0,0.00023287,2]
[344376152,1733390560253,-1983.95,0.00023287,2]
[344376153,1733390560278,-500.0,0.00023287,2]
[344376154,1733390560305,-155.25303101,0.00023287,2]
[344376155,1733390560329,-500.0,0.00023287,2]
[344376156,1733390560351,-500.0,0.00023287,2]
[344376157,1733390560374,-155.44367823,0.00023287,2]
[344376158,1733390560526,-684.58,0.00023287,2]
[344376159,1733390560557,-716.61,0.00023287,2]
[344376160,1733390560581,-1022.43,0.00023287,2]
[344376161,1733390560604,-500.0,0.00023287,2]
[344376162,1733390560627,-500.0,0.00023287,2]
[344376163,1733390560650,-1219.95,0.00023287,2]
[344376164,1733390560672,-500.0,0.00023287,2]
[344376165,1733390560696,-500.0,0.00023287,2]
[344376166,1733390560718,-500.0,0.00023287,2]
[344376167,1733390560741,-192.75040167,0.00023287,2]
[344376168,1733390560763,-500.0,0.00023287,2]
[344376169,1733390560786,-576.07,0.00023287,2]
[344376170,1733390560810,-573.24801082,0.00023287,2]
[344376171,1733390560833,-354.18174761,0.00023287,2]
[344376172,1733390560857,-500.0,0.00023287,2]
[344376173,1733390560880,-500.0,0.00023287,2]
[344376174,1733390560903,-151.0,0.000233,5]
[344376175,1733390560926,-350.8841143,0.00023338,2]
[344376176,1733390560951,-151.0,0.000234,8]
[344376177,1733390560974,-717.58179795,0.00023483,2]
[344376178,1733390560998,-400.0,0.00023485,2]
[344376179,1733390561022,-151.0,0.000235,6]
[344376180,1733390561045,-1000.0,0.00023521,2]
[344376181,1733390561068,-1005.01514248,0.00023521,2]
[344376182,1733390561092,-1000.0,0.00023521,2]
[344376183,1733390561116,-1500.0,0.00023522,2]
[344376184,1733390561139,-374.99637524,0.0002356,2]
[344376185,1733390561162,-500.0,0.00023561,2]
[344376186,1733390561184,-500.0,0.00023561,2]
[344376187,1733390561209,-483.10888046,0.00023561,2]
[344376188,1733390561234,-505.61747687,0.00023561,2]
[344376189,1733390561256,-500.0,0.00023561,2]
[344376190,1733390561279,-500.0,0.00023561,2]
[344376191,1733390561300,-500.0,0.00023561,2]
[344376192,1733390561324,-500.0,0.00023561,2]
[344376193,1733390561346,-500.0,0.00023561,2]
[344376194,1733390561368,-500.0,0.00023561,2]
[344376195,1733390561389,-500.0,0.00023561,2]
[344376196,1733390561412,-543.6951032,0.00023561,2]
[344376197,1733390561435,-500.0,0.00023561,2]
[344376198,1733390561459,-500.0,0.00023561,2]
[344376199,1733390561483,-520.83,0.00023561,2]
[344376200,1733390561505,-500.0,0.00023561,2]
[344376201,1733390561529,-500.0,0.00023561,2]
[344376202,1733390561552,-500.0,0.00023561,2]
[344376203,1733390561575,-500.0,0.00023561,2]
[344376204,1733390561597,-500.0,0.00023561,2]
[344376205,1733390561619,-399.46577606,0.00023561,2]
[344376206,1733390561641,-500.0,0.00023561,2]
[344376207,1733390561663,-500.0,0.00023561,2]
[344376208,1733390561686,-500.0,0.00023561,2]
[344376209,1733390561710,-500.0,0.00023561,2]
[344376210,1733390561732,-564.78,0.00023561,2]
[344376211,1733390561756,-500.0,0.00023561,2]
[344376212,1733390561779,-223.35709417,0.00023561,2]
[344376213,1733390561801,-500.0,0.00023561,2]
[344376214,1733390561824,-500.0,0.00023561,2]
[344376215,1733390561847,-500.0,0.00023561,2]
[344376216,1733390561869,-500.0,0.00023561,2]
[344376217,1733390561892,-500.0,0.00023561,2]
[344376218,1733390561913,-500.0,0.00023561,2]
[344376219,1733390561935,-500.0,0.00023561,2]
[344376220,1733390561959,-500.0,0.00023561,2]
[344376221,1733390561982,-538.22951416,0.00023561,2]
[344376222,1733390562004,-520.37091311,0.00023561,2]
[344376223,1733390562027,-500.0,0.00023561,2]
[344376224,1733390562050,-500.0,0.00023561,2]
[344376225,1733390562074,-676.0,0.00023561,2]
[344376226,1733390562097,-500.0,0.00023561,2]
[344376227,1733390562120,-500.0,0.00023561,2]
[344376228,1733390562144,-754.21,0.00023561,2]
[344376229,1733390562167,-500.0,0.00023561,2]
[344376230,1733390562192,-1001.41,0.00023561,2]
[344376231,1733390562217,-500.0,0.00023561,2]
[344376232,1733390562242,-576.97,0.00023561,2]
[344376233,1733390562266,-649.89,0.00023561,2]
[344376234,1733390562289,-500.0,0.00023561,2]
[344376235,1733390562380,-503.43,0.00023561,2]
[344376236,1733390562406,-8986.01,0.00023561,2]
[344376237,1733390562430,-834.8,0.00023561,2]
[344376238,1733390562458,-500.0,0.00023561,2]
[344376239,1733390562480,-500.0,0.00023561,2]
[344376240,1733390562501,-500.0,0.00023561,2]
[344376241,1733390562524,-1618.19,0.00023561,2]
[344376242,1733390562546,-500.0,0.00023561,2]
[344376243,1733390562568,-500.0,0.00023561,2]
[344376244,1733390562591,-544.26,0.00023561,2]
[344376245,1733390562613,-692.47,0.00023561,2]
[344376246,1733390562651,-5574.36,0.00023561,2]
[344376247,1733390562686,-500.0,0.00023561,2]
[344376248,1733390562725,-500.0,0.00023561,2]
[344376249,1733390562758,-500.0,0.00023561,2]
[344376250,1733390562793,-526.51,0.00023561,2]
[344376251,1733390562828,-500.0,0.00023561,2]
[344376252,1733390562863,-1222.44,0.00023561,2]
[344376253,1733390562897,-500.0,0.00023561,2]
[344376254,1733390562933,-535.19,0.00023561,2]
[344376255,1733390562983,-526.75,0.00023561,2]
[344376256,1733390563018,-500.0,0.00023561,2]
[344376257,1733390563052,-500.0,0.00023561,2]
[344376258,1733390563088,-770.38,0.00023561,2]
[344376259,1733390563124,-676.78,0.00023561,2]
[344376260,1733390563161,-557.56745209,0.00023561,2]
[344376261,1733390563199,-1983.95,0.00023561,2]
[344376262,1733390563242,-500.0,0.00023561,2]
[344376263,1733390563280,-500.0,0.00023561,2]
[344376264,1733390563316,-500.0,0.00023561,2]
[344376265,1733390563352,-684.58,0.00023561,2]
[344376266,1733390563389,-716.61,0.00023561,2]
[344376267,1733390563424,-1022.43,0.00023561,2]
[344376268,1733390563461,-500.0,0.00023561,2]
[344376269,1733390563499,-500.0,0.00023561,2]
[344376270,1733390563536,-1219.95,0.00023561,2]
[344376271,1733390563574,-500.0,0.00023561,2]
[344376272,1733390563614,-500.0,0.00023561,2]
[344376273,1733390563654,-340.67981407,0.00023561,2]
[344376274,1733390563693,-500.0,0.00023561,2]
[344376275,1733390563731,-576.07,0.00023561,2]
[344376276,1733390563768,-500.0,0.00023561,2]
[344376277,1733390563808,-436.31452047,0.00023561,2]
[344376278,1733390563845,-249.85,0.0002359,2]
[344376279,1733390563883,-532.0,0.0002359,2]
[344376280,1733390563920,-2170.0,0.0002359,2]
[344376281,1733390563956,-2374.0,0.0002359,2]
[344376282,1733390563993,-376.235,0.0002359,2]
[344376283,1733390564032,-151.0,0.000236,8]
[344376284,1733390564070,-1000.0,0.00023621,2]
[344376285,1733390564109,-1095.34826199,0.00023621,2]
[344376286,1733390564147,-151.0,0.000238,8]
[344376287,1733390564185,-510.63183285,0.00023835,2]
[344376288,1733390564224,-500.0,0.00023835,2]
[344376289,1733390564266,-500.0,0.00023835,2]
[344376290,1733390564303,-500.0,0.00023835,2]
[344376291,1733390564342,-500.0,0.00023835,2]
[344376292,1733390564381,-500.0,0.00023835,2]
[344376293,1733390564418,-500.0,0.00023835,2]
[344376294,1733390564456,-500.0,0.00023835,2]
[344376295,1733390564496,-529.73760026,0.00023835,2]
[344376296,1733390564536,-500.0,0.00023835,2]
[344376297,1733390564575,-500.0,0.00023835,2]
[344376298,1733390564612,-520.83,0.00023835,2]
[344376299,1733390564648,-500.0,0.00023835,2]
[344376300,1733390564684,-500.0,0.00023835,2]
[344376301,1733390564722,-500.0,0.00023835,2]
[344376302,1733390564761,-500.0,0.00023835,2]
[344376303,1733390564807,-500.0,0.00023835,2]
[344376304,1733390564845,-500.0,0.00023835,2]
[344376305,1733390564884,-458.58997792,0.00023835,2]
[344376306,1733390564924,-500.0,0.00023835,2]
[344376307,1733390564963,-500.0,0.00023835,2]
[344376308,1733390565004,-564.78,0.00023835,2]
[344376309,1733390565044,-500.0,0.00023835,2]
[344376310,1733390565086,-500.0,0.00023835,2]
[344376311,1733390565125,-500.0,0.00023835,2]
[344376312,1733390565162,-500.0,0.00023835,2]
[344376313,1733390565200,-566.17048896,0.00023835,2]
[344376314,1733390565240,-500.0,0.00023835,2]
[344376315,1733390565278,-500.0,0.00023835,2]
[344376316,1733390565317,-500.0,0.00023835,2]
[344376317,1733390565356,-500.0,0.00023835,2]
[344376318,1733390565393,-500.0,0.00023835,2]
[344376319,1733390565431,-676.0,0.00023835,2]
[344376320,1733390565469,-500.0,0.00023835,2]
[344376321,1733390565507,-500.0,0.00023835,2]
[344376322,1733390565544,-754.21,0.00023835,2]
[344376323,1733390565586,-500.0,0.00023835,2]
[344376324,1733390565624,-1001.41,0.00023835,2]
[344376325,1733390565662,-500.0,0.00023835,2]
[344376326,1733390565701,-576.97,0.00023835,2]
[344376327,1733390565738,-649.89,0.00023835,2]
[344376328,1733390565777,-500.0,0.00023835,2]
[344376329,1733390565816,-503.43,0.00023835,2]
[344376330,1733390565856,-8986.01,0.00023835,2]
[344376331,1733390565895,-834.8,0.00023835,2]
[344376332,1733390565932,-500.0,0.00023835,2]
[344376333,1733390565971,-500.0,0.00023835,2]
[344376334,1733390566008,-500.0,0.00023835,2]
[344376335,1733390566130,-1618.19,0.00023835,2]
[344376336,1733390566170,-500.0,0.00023835,2]
[344376337,1733390566212,-467.70222781,0.00023835,2]
[344376338,1733390566253,-544.26,0.00023835,2]
[344376339,1733390566292,-692.47,0.00023835,2]
[344376340,1733390566333,-5574.36,0.00023835,2]
[344376341,1733390566372,-500.0,0.00023835,2]
[344376342,1733390566410,-500.0,0.00023835,2]
[344376343,1733390566449,-500.0,0.00023835,2]
[344376344,1733390566488,-526.51,0.00023835,2]
[344376345,1733390566528,-155.83049506,0.00023835,2]
[344376346,1733390566565,-1222.44,0.00023835,2]
[344376347,1733390566605,-500.0,0.00023835,2]
[344376348,1733390566646,-535.19,0.00023835,2]
[344376349,1733390566684,-526.75,0.00023835,2]
[344376350,1733390566725,-500.0,0.00023835,2]
[344376351,1733390566765,-770.38,0.00023835,2]
[344376352,1733390566804,-676.78,0.00023835,2]
[344376353,1733390566844,-1983.95,0.00023835,2]
[344376354,1733390566883,-500.0,0.00023835,2]
[344376355,1733390566921,-500.0,0.00023835,2]
[344376356,1733390566958,-500.0,0.00023835,2]
[344376357,1733390566994,-684.58,0.00023835,2]
[344376358,1733390567031,-716.61,0.00023835,2]
[344376359,1733390567067,-1022.43,0.00023835,2]
[344376360,1733390567104,-500.0,0.00023835,2]
[344376361,1733390567144,-500.0,0.00023835,2]
[344376362,1733390567182,-1219.95,0.00023835,2]
[344376363,1733390567223,-500.0,0.00023835,2]
[344376364,1733390567261,-511.53237705,0.00023835,2]
[344376365,1733390567298,-500.0,0.00023835,2]
[344376366,1733390567337,-576.07,0.00023835,2]
[344376367,1733390567376,-500.0,0.00023835,2]
[344376368,1733390567415,-151.0,0.000239,5]
[344376369,1733390567453,-155.23971347,0.00023917,2]
[344376370,1733390567490,-500.0,0.00023986,2]
[344376371,1733390567609,500.0,0.00022739,2]
[344376372,1733390567652,500.0,0.00022739,2]
[344376373,1733390567694,304.94303983,0.00021917,2]
[344376374,1733390567735,500.0,0.00023013,2]
[344376375,1733390567778,193.65234831,0.00023013,2]
[344376376,1733390567821,373.08101945,0.00023287,2]
[344376377,1733390567862,1425.09148803,0.00022999,2]
[344376378,1733390567963,18321.52397268,0.00022913,2]
[344376379,1733390568097,1425.09148803,0.00023286,2]
[344376380,1733390571581,5990.68,0.00021917,2]
[344376381,1733390571871,5990.68,0.00022191,2]
[344376382,1733390572060,500.0,0.00021917,2]
[344376383,1733390572153,5990.68,0.00022465,2]
[344376385,1733390572433,5990.68,0.00022739,2]
[344376386,1733390572534,500.0,0.00022191,2]
[344376387,1733390572694,5990.68,0.00023013,2]
[344376388,1733390572813,500.0,0.00022465,2]
[344376389,1733390572958,5990.68,0.00023287,2]
[344376390,1733390573115,500.0,0.00022739,2]
[344376391,1733390573444,500.0,0.00023013,2]
[344376392,1733390573569,5990.68,0.00023561,2]
[344376393,1733390573847,5990.68,0.00023835,2]
[344376394,1733390573902,500.0,0.00023287,2]
[344376395,1733390574186,500.0,0.00023561,2]
[344376396,1733390574468,500.0,0.00023835,2]
[344376397,1733390575684,950.06099202,0.00023985,2]
[344376399,1733390578641,500.0,0.00021917,2]
[344376400,1733390579583,500.0,0.00021917,2]
[344376401,1733390580225,500.0,0.00022191,2]
[344376402,1733390580528,500.0,0.00022465,2]
[344376403,1733390580825,500.0,0.00022739,2]
[344376404,1733390581086,500.0,0.00023013,2]
[344376405,1733390581359,500.0,0.00023287,2]
[344376406,1733390581641,500.0,0.00023561,2]
[344376407,1733390581936,500.0,0.00023835,2]
[344376408,1733390582552,500.0,0.00022973,2]
[344376409,1733390582605,1000.0,0.00023521,2]
[344376410,1733390583107,500.0,0.00021917,2]
[344376411,1733390583396,500.0,0.00022191,2]
[344376412,1733390584009,500.0,0.00022465,2]
[344376413,1733390584292,500.0,0.00022739,2]
[344376414,1733390584750,500.0,0.00023013,2]
[344376415,1733390585045,500.0,0.00023287,2]
[344376416,1733390585294,500.0,0.00023561,2]
[344376417,1733390585447,791.71749335,0.00023985,2]
[344376418,1733390585579,500.0,0.00023835,2]
[344376419,1733390588671,500.0,0.00021917,2]
[344376420,1733390588944,556.54,0.00021917,2]
[344376421,1733390588986,500.0,0.00022191,2]
[344376422,1733390589218,543.26393746,0.00022465,2]
[344376423,1733390589269,556.54,0.00022191,2]
[344376424,1733390589520,556.54,0.00022465,2]
[344376425,1733390589784,556.54,0.00022739,2]
[344376426,1733390590057,556.54,0.00023013,2]
[344376427,1733390590442,556.54,0.00023287,2]
[344376428,1733390590730,556.54,0.00023561,2]
[344376429,1733390590994,556.54,0.00023835,2]
[344376430,1733390595787,659.76457779,0.00023985,2]
[344376431,1733390598445,504.9161605,0.00023427,2]
[344376432,1733390599430,500.0,0.00021917,2]
[344376433,1733390599621,500.0,0.00021917,2]
[344376434,1733390599692,176.97515057,0.00022191,2]
[344376435,1733390599914,500.0,0.00022191,2]
[344376436,1733390600239,500.0,0.00022465,2]
[344376437,1733390600530,357.16686681,0.00022739,2]
[344376438,1733390602120,510.7156502,0.00023746,2]
[344376439,1733390603481,1309.27,0.00021917,2]
[344376440,1733390603790,1309.27,0.00022191,2]
[344376441,1733390604079,1309.27,0.00022465,2]
[344376442,1733390604336,1309.27,0.00022739,2]
[344376443,1733390604646,1309.27,0.00023013,2]
[344376444,1733390604892,1309.27,0.00023287,2]
[344376445,1733390605165,1309.27,0.00023561,2]
[344376446,1733390605447,1309.27,0.00023835,2]
[344376447,1733390605501,549.80381482,0.00023985,2]
[344376448,1733390608581,250.0,0.00023498,2]
[344376449,1733390608647,500.0,0.00021917,2]
[344376450,1733390608904,500.0,0.00022191,2]
[344376451,1733390609104,502.44537569,0.00021917,2]
[344376453,1733390609218,500.0,0.00022465,2]
[344376454,1733390609468,500.0,0.00022739,2]
[344376455,1733390609779,500.0,0.00023013,2]
[344376456,1733390610045,500.0,0.00023287,2]
[344376457,1733390610339,500.0,0.00023561,2]
[344376458,1733390610490,500.0,0.00021917,2]
[344376459,1733390610613,500.0,0.00023835,2]
[344376460,1733390610783,500.0,0.00022191,2]
[344376461,1733390611077,500.0,0.00022465,2]
[344376462,1733390611355,500.0,0.00022739,2]
[344376463,1733390611628,622.1067313,0.00023013,2]
[344376464,1733390615557,458.16984569,0.00023985,2]
[344376465,1733390616074,500.0,0.00021917,2]
[344376466,1733390616356,500.0,0.00022191,2]
[344376467,1733390617116,500.0,0.00021917,2]
[344376468,1733390617228,500.0,0.00022465,2]
[344376469,1733390617370,500.0,0.00022191,2]
[344376470,1733390617526,500.0,0.00022739,2]
[344376471,1733390617728,500.0,0.00022465,2]
[344376472,1733390617788,299.13896923,0.00023013,2]
[344376473,1733390617999,500.0,0.00022739,2]
[344376474,1733390618280,500.0,0.00023013,2]
[344376475,1733390618614,500.0,0.00023287,2]
[344376476,1733390618844,500.0,0.00023561,2]
[344376477,1733390619327,500.0,0.00023835,2]
[344376478,1733390619402,500.0,0.00023012,2]
[344376479,1733390619448,500.0,0.00023012,2]
[344376480,1733390619488,500.0,0.00023012,2]
[344376481,1733390619535,500.0,0.00023012,2]
[344376482,1733390619573,500.0,0.00023012,2]
[344376483,1733390619611,500.0,0.00023012,2]
[344376484,1733390620002,500.0,0.00023012,2]
[344376485,1733390620045,500.0,0.00023012,2]
[344376486,1733390620092,500.0,0.00023012,2]
[344376487,1733390620134,500.0,0.00023012,2]
[344376488,1733390620173,500.0,0.00023012,2]
[344376489,1733390620212,500.0,0.00023012,2]
[344376490,1733390620254,500.0,0.00023012,2]
[344376491,1733390620294,385.0,0.00023012,2]
[344376492,1733390620337,500.0,0.00023012,2]
[344376493,1733390620380,500.0,0.00021917,2]
[344376494,1733390620423,500.0,0.00023012,2]
[344376495,1733390620597,500.0,0.00022191,2]
[344376496,1733390620895,500.0,0.00022465,2]
[344376497,1733390621146,500.0,0.00022739,2]
[344376498,1733390621470,241.5400398,0.00023013,2]
[344376499,1733390621545,151.0,0.00023013,7]
[344376500,1733390621647,500.0,0.00021917,2]
[344376501,1733390621840,151.0,0.00023287,7]
[344376502,1733390621900,500.0,0.00022191,2]
[344376503,1733390622032,500.0,0.00021917,2]
[344376504,1733390622138,151.0,0.00023287,7]
[344376505,1733390622196,500.0,0.00022465,2]
[344376506,1733390622302,500.0,0.00022191,2]
[344376507,1733390622460,500.0,0.00022739,2]
[344376508,1733390622584,500.0,0.00022465,2]
[344376509,1733390622625,151.0,0.00023561,7]
[344376510,1733390622725,500.0,0.00023013,2]
[344376511,1733390622917,178.87536,0.00023835,7]
[344376512,1733390622989,500.0,0.00022739,2]
[344376513,1733390623031,500.0,0.00023287,2]
[344376514,1733390623249,500.0,0.00023561,2]
[344376515,1733390623288,500.0,0.00023013,2]
[344376516,1733390623513,250.9088536,0.00023835,2]
[344376517,1733390623554,500.0,0.00023287,2]
[344376518,1733390623786,500.0,0.00023561,2]
[344376519,1733390624052,500.0,0.00023835,2]
[344376520,1733390624154,151.0,0.00023013,7]
[344376521,1733390624532,507.93884277,0.00021917,2]
[344376522,1733390624618,151.0,0.00023287,7]
[344376523,1733390625265,621.89769975,0.00021917,2]
[344376524,1733390625510,381.80820474,0.00023985,2]
[344376525,1733390627634,478.87759934,0.00021917,2]
[344376526,1733390628873,500.0,0.00021917,2]
[344376527,1733390629137,500.0,0.00021917,2]
[344376528,1733390629182,500.0,0.00022191,2]
[344376529,1733390629235,500.0,0.00021917,2]
[344376530,1733390629432,500.0,0.00022465,2]
[344376531,1733390629475,500.0,0.00022191,2]
[344376532,1733390629517,500.0,0.00022191,2]
[344376533,1733390629710,500.0,0.00022739,2]
[344376534,1733390629752,500.0,0.00022465,2]
[344376535,1733390629796,500.0,0.00022465,2]
[344376536,1733390629986,500.0,0.00023013,2]
[344376537,1733390630025,500.0,0.00022739,2]
[344376538,1733390630343,500.0,0.00023287,2]
[344376539,1733390630400,500.0,0.00022739,2]
[344376540,1733390630615,500.0,0.00023561,2]
[344376541,1733390630677,500.0,0.00023013,2]
[344376542,1733390630869,168.62360886,0.00023013,2]
[344376543,1733390630909,500.0,0.00023835,2]
[344376544,1733390630947,161.155385,0.00023383,2]
[344376545,1733390630986,500.0,0.00023287,2]
[344376546,1733390631027,500.0,0.00021917,2]
[344376547,1733390631156,161.155385,0.00023389,2]
[344376548,1733390631235,500.0,0.00023561,2]
[344376549,1733390631314,500.0,0.00022191,2]
[344376550,1733390631370,500.0,0.00021917,2]
[344376551,1733390631409,161.155385,0.00023396,2]
[344376552,1733390631609,500.0,0.00023835,2]
[344376553,1733390631654,500.0,0.00022465,2]
[344376554,1733390631692,161.155385,0.00023402,2]
[344376555,1733390631731,500.0,0.00022191,2]
[344376556,1733390631847,161.155385,0.00023409,2]
[344376557,1733390631889,500.0,0.00022739,2]
[344376558,1733390631932,500.0,0.00022465,2]
[344376559,1733390632049,161.155385,0.00023415,2]
[344376560,1733390632140,500.0,0.00023013,2]
[344376561,1733390632265,161.155385,0.00023422,2]
[344376562,1733390632416,500.0,0.00023287,2]
[344376563,1733390632473,161.155385,0.00023428,2]
[344376564,1733390632703,500.0,0.00023561,2]
[344376565,1733390632859,151.0,0.00023287,7]
[344376566,1733390632897,161.155385,0.00023435,2]
[344376567,1733390632964,500.0,0.00023835,2]
[344376568,1733390633119,161.155385,0.00023441,2]
[344376569,1733390633251,214.517132,0.00023561,7]
[344376570,1733390633325,161.155385,0.00023448,2]
[344376571,1733390633533,161.155385,0.00023454,2]
[344376572,1733390633766,161.155385,0.00023461,2]
[344376573,1733390633945,161.155385,0.00023467,2]
[344376574,1733390634179,161.155385,0.00023474,2]
[344376575,1733390634390,161.155385,0.0002348,2]
[344376576,1733390634623,161.155385,0.00023487,2]
[344376577,1733390634817,500.0,0.00022739,2]
[344376578,1733390635012,161.155385,0.00023493,2]
[344376579,1733390635180,500.0,0.00023013,2]
[344376580,1733390635259,161.155385,0.000235,2]
[344376581,1733390635488,500.0,0.00023287,2]
[344376582,1733390635602,318.17350395,0.00023985,2]
[344376583,1733390635752,500.0,0.00023561,2]
[344376584,1733390636021,500.0,0.00023835,2]
[344376585,1733390636664,879.78,0.00021917,2]
[344376586,1733390637268,879.78,0.00022191,2]